[Event "*** Titled Tuesday Blitz"]
[Site "Chess.com"]
[Date "2018.06.05"]
[Round "1"]
[White "Kubas1010"]
[Black "Buffy7"]
[Result "0-1"]
[WhiteElo "2382"]
[BlackElo "2730"]
[TimeControl "180+2"]
[EndTime "13:09:20 PDT"]
[Termination "Buffy7 won by resignation"]

1. d4 {[%clk 0:03:01.9]} 1... Nf6 {[%clk 0:03:00.6]} 2. c4 {[%clk 0:03:02.9]}
2... e6 {[%clk 0:03:01.8]} 3. g3 {[%clk 0:03:03.7]} 3... d5 {[%clk 0:02:58.2]}
4. Nf3 {[%clk 0:03:04.3]} 4... Bb4+ {[%clk 0:02:58.9]} 5. Bd2 {[%clk 0:03:05]}
5... Be7 {[%clk 0:03:00.4]} 6. Bg2 {[%clk 0:03:04.1]} 6... O-O {[%clk
0:03:01.9]} 7. O-O {[%clk 0:03:05]} 7... c6 {[%clk 0:03:03.1]} 8. Qc2 {[%clk
0:03:05.5]} 8... Ne4 {[%clk 0:03:04]} 9. Bc1 {[%clk 0:02:55.5]} 9... Nd7 {[%clk
0:03:00.5]} 10. Nfd2 {[%clk 0:02:52.6]} 10... f5 {[%clk 0:02:57.2]} 11. Nxe4
{[%clk 0:02:43.5]} 11... fxe4 {[%clk 0:02:56.6]} 12. Nc3 {[%clk 0:02:44]} 12...
Nf6 {[%clk 0:02:42.4]} 13. c5 {[%clk 0:02:37.5]} 13... e5 {[%clk 0:02:34.7]} 14.
dxe5 {[%clk 0:02:35]} 14... Ng4 {[%clk 0:02:35.6]} 15. Bf4 {[%clk 0:02:07.6]}
15... g5 {[%clk 0:02:36.3]} 16. Bd2 {[%clk 0:01:42.6]} 16... Nxe5 {[%clk
0:02:31.4]} 17. b4 {[%clk 0:01:39.3]} 17... Bf5 {[%clk 0:02:28.6]} 18. Qb3
{[%clk 0:01:33.8]} 18... Kh8 {[%clk 0:02:17.5]} 19. Be3 {[%clk 0:01:32.6]} 19...
Bf6 {[%clk 0:02:14.2]} 20. Bd4 {[%clk 0:01:33.3]} 20... Ng4 {[%clk 0:02:10]} 21.
Rad1 {[%clk 0:01:28.2]} 21... Bxd4 {[%clk 0:02:08]} 22. Rxd4 {[%clk 0:01:30.1]}
22... Qf6 {[%clk 0:02:09.3]} 23. Qd1 {[%clk 0:01:25.7]} 23... Qh6 {[%clk
0:02:06.3]} 24. h3 {[%clk 0:01:23.2]} 24... Ne5 {[%clk 0:02:06.9]} 25. f4 {[%clk
0:01:04.5]} 25... exf3 {[%clk 0:01:48.6]} 26. exf3 {[%clk 0:01:04.3]} 26... Bxh3
{[%clk 0:01:49.1]} 27. f4 {[%clk 0:00:43.2]} 27... g4 {[%clk 0:01:06.1]} 28.
Bxh3 {[%clk 0:00:17.2]} 28... Qxh3 {[%clk 0:01:08]} 29. Qe1 {[%clk 0:00:09.8]}
29... Ng6 {[%clk 0:00:49.5]} 30. f5 {[%clk 0:00:08.1]} 30... Rae8 {[%clk
0:00:45.9]} 31. Qf2 {[%clk 0:00:09.4]} 31... Ne5 {[%clk 0:00:45.4]} 32. Rf4
{[%clk 0:00:08.1]} 32... Nf3+ {[%clk 0:00:40.8]} 33. Rxf3 {[%clk 0:00:09.4]}
33... gxf3 {[%clk 0:00:42.7]} 34. Qxf3 {[%clk 0:00:11.3]} 34... Qh6 {[%clk
0:00:39.2]} 35. Ne2 {[%clk 0:00:11]} 35... Qe3+ {[%clk 0:00:38]} 36. Qxe3 {[%clk
0:00:12.2]} 36... Rxe3 {[%clk 0:00:39.9]} 37. Rf2 {[%clk 0:00:12.2]} 37... h5
{[%clk 0:00:36.5]} 38. Kg2 {[%clk 0:00:12.5]} 38... Kh7 {[%clk 0:00:34.4]} 39.
Nd4 {[%clk 0:00:13.7]} 39... Rf6 {[%clk 0:00:32.4]} 40. Ne6 {[%clk 0:00:12.9]}
40... Re5 {[%clk 0:00:31.7]} 41. Nd4 {[%clk 0:00:12.4]} 41... Re4 {[%clk
0:00:33]} 42. Rd2 {[%clk 0:00:09.6]} 42... Kh6 {[%clk 0:00:27.4]} 43. Kf3 {[%clk
0:00:10.6]} 43... Kg5 {[%clk 0:00:27.9]} 44. a3 {[%clk 0:00:09.9]} 44... a6
{[%clk 0:00:28.5]} 45. Rd3 {[%clk 0:00:10.6]} 45... Re1 {[%clk 0:00:28.5]} 46.
Kg2 {[%clk 0:00:11.4]} 46... Re4 {[%clk 0:00:29.1]} 47. Kf3 {[%clk 0:00:12]}
47... Rf8 {[%clk 0:00:30]} 48. Kg2 {[%clk 0:00:13]} 48... Rfe8 {[%clk
0:00:31.4]} 49. Kf2 {[%clk 0:00:13.2]} 49... Kf6 {[%clk 0:00:30.9]} 50. Kg2
{[%clk 0:00:11.6]} 50... Ke5 {[%clk 0:00:32.3]} 51. Nf3+ {[%clk 0:00:10.8]}
51... Kxf5 {[%clk 0:00:33.6]} 52. Nh4+ {[%clk 0:00:11.3]} 52... Ke6 {[%clk
0:00:32.8]} 53. Nf3 {[%clk 0:00:11.7]} 53... Kd7 {[%clk 0:00:33.4]} 54. Ng5
{[%clk 0:00:12.4]} 54... Re3 {[%clk 0:00:34.4]} 55. Kh3 {[%clk 0:00:13.9]} 55...
Rxd3 {[%clk 0:00:35.6]} 0-1

[Event "*** Titled Tuesday Blitz"]
[Site "Chess.com"]
[Date "2018.06.05"]
[Round "1"]
[White "Shaman91"]
[Black "ama18"]
[Result "1-0"]
[WhiteElo "2563"]
[BlackElo "2249"]
[TimeControl "180+2"]
[EndTime "13:09:21 PDT"]
[Termination "Shaman91 won by resignation"]

1. e4 {[%clk 0:03:01.3]} 1... e6 {[%clk 0:03:00.7]} 2. Nc3 {[%clk 0:03:01.8]}
2... d5 {[%clk 0:03:02.5]} 3. d4 {[%clk 0:03:03.1]} 3... Nf6 {[%clk 0:03:02.6]}
4. e5 {[%clk 0:03:03.5]} 4... Nfd7 {[%clk 0:03:03.5]} 5. Nce2 {[%clk 0:03:04.5]}
5... c5 {[%clk 0:03:04.1]} 6. c3 {[%clk 0:03:05.9]} 6... Nc6 {[%clk 0:03:05.6]}
7. Nf3 {[%clk 0:03:06.3]} 7... a6 {[%clk 0:03:02]} 8. h4 {[%clk 0:03:04.2]} 8...
b5 {[%clk 0:03:01.2]} 9. Nf4 {[%clk 0:03:05.1]} 9... h5 {[%clk 0:02:59.3]} 10.
Ng5 {[%clk 0:03:04.2]} 10... cxd4 {[%clk 0:02:46.6]} 11. cxd4 {[%clk 0:03:01.5]}
11... Bb4+ {[%clk 0:02:46.6]} 12. Bd2 {[%clk 0:03:00.7]} 12... Qa5 {[%clk
0:02:42.4]} 13. Nf3 {[%clk 0:02:51.8]} 13... Bb7 {[%clk 0:02:32.9]} 14. Bd3
{[%clk 0:02:48.8]} 14... Qb6 {[%clk 0:02:26.3]} 15. Bxb4 {[%clk 0:02:44.4]}
15... Nxb4 {[%clk 0:02:28.1]} 16. O-O {[%clk 0:02:45]} 16... O-O-O {[%clk
0:02:15.5]} 17. Be2 {[%clk 0:02:41.9]} 17... Kb8 {[%clk 0:02:14.7]} 18. Qd2
{[%clk 0:02:42.7]} 18... Nc6 {[%clk 0:02:15.1]} 19. Rfd1 {[%clk 0:02:43.3]}
19... Rde8 {[%clk 0:02:04.9]} 20. Ng5 {[%clk 0:02:43.9]} 20... Nd8 {[%clk
0:02:05.2]} 21. g3 {[%clk 0:02:41.2]} 21... f6 {[%clk 0:02:05.7]} 22. Nf3 {[%clk
0:02:38.8]} 22... fxe5 {[%clk 0:01:58.8]} 23. dxe5 {[%clk 0:02:36.7]} 23... Nc6
{[%clk 0:01:59.8]} 24. Ng5 {[%clk 0:02:25.7]} 24... Ncxe5 {[%clk 0:01:57.4]} 25.
Nxh5 {[%clk 0:02:24.8]} 25... Nf6 {[%clk 0:01:36.1]} 26. Qf4 {[%clk 0:02:15.3]}
26... Qd6 {[%clk 0:01:06.7]} 27. Nxf6 {[%clk 0:02:01.1]} 27... gxf6 {[%clk
0:01:01.6]} 28. Ne4 {[%clk 0:02:02.2]} 28... Qc7 {[%clk 0:00:56.2]} 29. Nxf6
{[%clk 0:02:03.3]} 29... Rd8 {[%clk 0:00:47.6]} 30. Rac1 {[%clk 0:02:00.2]}
30... Nc6 {[%clk 0:00:39.3]} 31. Qe3 {[%clk 0:01:44.1]} 31... Rhf8 {[%clk
0:00:32.3]} 32. Ng4 {[%clk 0:01:41.2]} 32... e5 {[%clk 0:00:30.6]} 33. Bf3
{[%clk 0:01:27.1]} 33... e4 {[%clk 0:00:18.8]} 34. Bg2 {[%clk 0:01:28.2]} 34...
Qe7 {[%clk 0:00:18.8]} 35. Qg5 {[%clk 0:01:25.9]} 35... Qe6 {[%clk 0:00:18.8]}
36. Bh3 {[%clk 0:01:04]} 36... Rg8 {[%clk 0:00:17.6]} 37. Qf4+ {[%clk
0:01:04.7]} 37... Ka8 {[%clk 0:00:16.7]} 38. Kg2 {[%clk 0:00:57.5]} 38... Rdf8
{[%clk 0:00:17.4]} 39. Qh6 {[%clk 0:00:58.8]} 39... Rg6 {[%clk 0:00:16]} 40. Qh5
{[%clk 0:00:57.1]} 40... Qe8 {[%clk 0:00:13.2]} 41. Rxd5 {[%clk 0:00:52.5]}
41... Ne7 {[%clk 0:00:13.2]} 42. Ne3 {[%clk 0:00:50.4]} 42... Nxd5 {[%clk
0:00:13.6]} 43. Nxd5 {[%clk 0:00:45.4]} 43... Rg7 {[%clk 0:00:14.2]} 44. Qxe8+
{[%clk 0:00:38.4]} 44... Rxe8 {[%clk 0:00:16]} 45. Nc7+ {[%clk 0:00:39.9]} 45...
Rxc7 {[%clk 0:00:16.7]} 46. Rxc7 {[%clk 0:00:41.6]} 46... e3+ {[%clk 0:00:18.5]}
47. Kf1 {[%clk 0:00:42.8]} 47... e2+ {[%clk 0:00:18.9]} 48. Ke1 {[%clk
0:00:43.2]} 48... Bf3 {[%clk 0:00:20.7]} 49. Rc8+ {[%clk 0:00:42.2]} 49... Rxc8
{[%clk 0:00:21.1]} 50. Bxc8 {[%clk 0:00:44]} 50... Kb8 {[%clk 0:00:22.7]} 51.
Bf5 {[%clk 0:00:45]} 51... Kc7 {[%clk 0:00:23.6]} 52. Bd3 {[%clk 0:00:45.8]}
52... Bd5 {[%clk 0:00:25.1]} 53. a3 {[%clk 0:00:46.4]} 53... Kb6 {[%clk
0:00:25.7]} 54. Bxe2 {[%clk 0:00:46.7]} 54... Kc5 {[%clk 0:00:25.9]} 55. h5
{[%clk 0:00:47.2]} 55... Be4 {[%clk 0:00:26.1]} 56. g4 {[%clk 0:00:48.1]} 56...
a5 {[%clk 0:00:27.2]} 57. g5 {[%clk 0:00:49.1]} 57... b4 {[%clk 0:00:28.5]} 58.
axb4+ {[%clk 0:00:50.5]} 58... Kxb4 {[%clk 0:00:29.5]} 59. Kd2 {[%clk
0:00:51.5]} 59... Kb3 {[%clk 0:00:30.6]} 60. Kc1 {[%clk 0:00:52.5]} 1-0

[Event "*** Titled Tuesday Blitz"]
[Site "Chess.com"]
[Date "2018.06.05"]
[Round "1"]
[White "51616516516"]
[Black "Margency"]
[Result "1/2-1/2"]
[WhiteElo "2283"]
[BlackElo "2579"]
[TimeControl "180+2"]
[EndTime "13:09:24 PDT"]
[Termination "Game drawn by repetition"]

1. d4 {[%clk 0:03:00.7]} 1... Nf6 {[%clk 0:03:00.6]} 2. c4 {[%clk 0:03:02]} 2...
g6 {[%clk 0:03:01.7]} 3. Nf3 {[%clk 0:03:02.3]} 3... Bg7 {[%clk 0:03:02.5]} 4.
g3 {[%clk 0:03:03.5]} 4... d5 {[%clk 0:03:02.7]} 5. cxd5 {[%clk 0:03:03.3]} 5...
Nxd5 {[%clk 0:03:03.6]} 6. Bg2 {[%clk 0:03:04.7]} 6... Nb6 {[%clk 0:03:04.8]} 7.
O-O {[%clk 0:03:04.5]} 7... Nc6 {[%clk 0:03:06]} 8. Nc3 {[%clk 0:03:04.6]} 8...
O-O {[%clk 0:03:06.5]} 9. d5 {[%clk 0:03:04]} 9... Na5 {[%clk 0:03:07]} 10. Qc2
{[%clk 0:03:05.5]} 10... c6 {[%clk 0:03:03.4]} 11. dxc6 {[%clk 0:03:06.7]} 11...
Nxc6 {[%clk 0:03:03.7]} 12. Bf4 {[%clk 0:03:08]} 12... Bf5 {[%clk 0:02:55.1]}
13. e4 {[%clk 0:02:58.3]} 13... Bg4 {[%clk 0:02:53.4]} 14. Rad1 {[%clk
0:02:51.4]} 14... Qc8 {[%clk 0:02:54.1]} 15. Nb5 {[%clk 0:02:33.8]} 15... e5
{[%clk 0:02:20.4]} 16. Be3 {[%clk 0:02:10.4]} 16... Rd8 {[%clk 0:01:55.2]} 17.
Rc1 {[%clk 0:02:11.1]} 17... Bxf3 {[%clk 0:01:51.8]} 18. Bxf3 {[%clk 0:02:11.4]}
18... Nd4 {[%clk 0:01:52.1]} 19. Bxd4 {[%clk 0:02:09.1]} 19... exd4 {[%clk
0:01:50.7]} 20. Qxc8 {[%clk 0:02:04.7]} 20... Nxc8 {[%clk 0:01:43.8]} 21. Rfd1
{[%clk 0:01:58.1]} 21... a6 {[%clk 0:01:42.6]} 22. Nc7 {[%clk 0:01:58.7]} 22...
Rb8 {[%clk 0:01:43.1]} 23. Nd5 {[%clk 0:01:59.1]} 23... Nd6 {[%clk 0:01:41.6]}
24. a4 {[%clk 0:01:43.5]} 24... Kf8 {[%clk 0:01:41.7]} 25. Nb6 {[%clk
0:01:35.6]} 25... f5 {[%clk 0:01:16.5]} 26. exf5 {[%clk 0:01:32.9]} 26... Nxf5
{[%clk 0:01:17.6]} 27. Rd3 {[%clk 0:01:20]} 27... Rd6 {[%clk 0:01:14.3]} 28. a5
{[%clk 0:01:19.2]} 28... Bf6 {[%clk 0:01:07.8]} 29. Rc7 {[%clk 0:01:16]} 29...
Kg8 {[%clk 0:00:50.6]} 30. Rxb7 {[%clk 0:00:50.3]} 30... Rxb7 {[%clk 0:00:49.2]}
31. Bxb7 {[%clk 0:00:51.8]} 31... Bd8 {[%clk 0:00:50.5]} 32. Bxa6 {[%clk
0:00:52.8]} 32... Bxb6 {[%clk 0:00:51]} 33. Bc4+ {[%clk 0:00:53.6]} 33... Kg7
{[%clk 0:00:50.2]} 34. axb6 {[%clk 0:00:55.5]} 34... Rxb6 {[%clk 0:00:51.1]} 35.
b3 {[%clk 0:00:51.6]} 35... Kf6 {[%clk 0:00:51.3]} 36. Kg2 {[%clk 0:00:51.1]}
36... Rd6 {[%clk 0:00:50.3]} 37. g4 {[%clk 0:00:48.3]} 37... Nh4+ {[%clk
0:00:50.2]} 38. Kg3 {[%clk 0:00:48.4]} 38... g5 {[%clk 0:00:51.6]} 39. f4 {[%clk
0:00:47.5]} 39... h6 {[%clk 0:00:51.7]} 40. f5 {[%clk 0:00:33.1]} 40... Ke5
{[%clk 0:00:52.4]} 41. Rd1 {[%clk 0:00:30.5]} 41... Rb6 {[%clk 0:00:47.7]} 42.
Re1+ {[%clk 0:00:30.8]} 42... Kf6 {[%clk 0:00:46]} 43. Re6+ {[%clk 0:00:21.2]}
43... Rxe6 {[%clk 0:00:47.1]} 44. Bxe6 {[%clk 0:00:23.1]} 44... d3 {[%clk
0:00:47.6]} 45. Bc4 {[%clk 0:00:23.8]} 45... d2 {[%clk 0:00:48.4]} 46. Be2
{[%clk 0:00:24.8]} 46... Ke5 {[%clk 0:00:49.4]} 47. b4 {[%clk 0:00:25.5]} 47...
Kd4 {[%clk 0:00:50.6]} 48. b5 {[%clk 0:00:26.5]} 48... Kc5 {[%clk 0:00:51.9]}
49. h3 {[%clk 0:00:26.9]} 49... d1=Q {[%clk 0:00:47.1]} 50. Bxd1 {[%clk
0:00:27.6]} 50... Kxb5 {[%clk 0:00:48.7]} 51. Bc2 {[%clk 0:00:20]} 51... Kc5
{[%clk 0:00:49.4]} 52. Be4 {[%clk 0:00:15.9]} 52... Kd6 {[%clk 0:00:50.6]} 53.
Kf2 {[%clk 0:00:13.9]} 53... Ke5 {[%clk 0:00:51.6]} 54. Ke3 {[%clk 0:00:15.5]}
54... h5 {[%clk 0:00:52.2]} 55. Bb7 {[%clk 0:00:07.8]} 55... hxg4 {[%clk
0:00:51.2]} 56. hxg4 {[%clk 0:00:09.7]} 56... Nxf5+ {[%clk 0:00:52.4]} 57. gxf5
{[%clk 0:00:10.2]} 57... Kxf5 {[%clk 0:00:54]} 58. Kf2 {[%clk 0:00:11.3]} 58...
Kf4 {[%clk 0:00:55.2]} 59. Kg2 {[%clk 0:00:12]} 59... g4 {[%clk 0:00:57.1]} 60.
Bc8 {[%clk 0:00:12.3]} 60... g3 {[%clk 0:00:59]} 61. Bb7 {[%clk 0:00:13.5]}
61... Kg4 {[%clk 0:01:00.1]} 62. Ba8 {[%clk 0:00:15.1]} 62... Kh4 {[%clk
0:01:02]} 63. Bb7 {[%clk 0:00:16.9]} 63... Kg4 {[%clk 0:01:03.4]} 64. Ba8 {[%clk
0:00:18.8]} 64... Kh4 {[%clk 0:01:05.3]} 65. Bb7 {[%clk 0:00:20.6]} 65... Kg4
{[%clk 0:01:07.2]} 66. Ba8 {[%clk 0:00:22]} 66... Kh4 {[%clk 0:01:09.1]} 67. Bb7
{[%clk 0:00:23.9]} 67... Kg4 {[%clk 0:01:11]} 68. Ba8 {[%clk 0:00:25.7]} 68...
Kh4 {[%clk 0:01:12.9]} 69. Bb7 {[%clk 0:00:27.4]} 69... Kg4 {[%clk 0:01:14.8]}
1/2-1/2

[Event "*** Titled Tuesday Blitz"]
[Site "Chess.com"]
[Date "2018.06.05"]
[Round "1"]
[White "pedromartinez91"]
[Black "Gvalch"]
[Result "1-0"]
[WhiteElo "2317"]
[BlackElo "2609"]
[TimeControl "180+2"]
[EndTime "13:09:25 PDT"]
[Termination "pedromartinez91 won by resignation"]

1. d4 {[%clk 0:02:58.9]} 1... d5 {[%clk 0:03:00.7]} 2. c4 {[%clk 0:02:58.5]}
2... c6 {[%clk 0:03:02]} 3. Nf3 {[%clk 0:02:56.4]} 3... Nf6 {[%clk 0:03:02.8]}
4. cxd5 {[%clk 0:02:56.2]} 4... cxd5 {[%clk 0:03:03.8]} 5. Nc3 {[%clk
0:02:58.1]} 5... Nc6 {[%clk 0:03:04.6]} 6. Bf4 {[%clk 0:02:58.1]} 6... a6 {[%clk
0:03:05.6]} 7. e3 {[%clk 0:02:58.8]} 7... Bg4 {[%clk 0:03:06.2]} 8. Bd3 {[%clk
0:02:57.8]} 8... e6 {[%clk 0:03:06.7]} 9. h3 {[%clk 0:02:55.8]} 9... Bxf3 {[%clk
0:03:07]} 10. Qxf3 {[%clk 0:02:52.1]} 10... Be7 {[%clk 0:03:08.9]} 11. Rc1
{[%clk 0:02:52.4]} 11... Rc8 {[%clk 0:03:08.3]} 12. O-O {[%clk 0:02:50.9]} 12...
O-O {[%clk 0:03:04.3]} 13. Rfd1 {[%clk 0:02:48.6]} 13... b5 {[%clk 0:02:53.5]}
14. Bb1 {[%clk 0:02:40]} 14... Na5 {[%clk 0:02:49.2]} 15. Qe2 {[%clk 0:02:23.7]}
15... Nc4 {[%clk 0:02:48.1]} 16. Be5 {[%clk 0:01:53.7]} 16... Nd7 {[%clk
0:02:39]} 17. Qc2 {[%clk 0:01:22.1]} 17... f5 {[%clk 0:02:38.8]} 18. Bf4 {[%clk
0:01:17.7]} 18... Qa5 {[%clk 0:02:14.4]} 19. b3 {[%clk 0:00:21.4]} 19... Na3
{[%clk 0:02:11.5]} 20. Qb2 {[%clk 0:00:22]} 20... Bb4 {[%clk 0:01:57]} 21. Ne2
{[%clk 0:00:21.7]} 21... Nxb1 {[%clk 0:01:57.4]} 22. Qxb1 {[%clk 0:00:21.7]}
22... Ba3 {[%clk 0:01:55.6]} 23. Rxc8 {[%clk 0:00:18.7]} 23... Rxc8 {[%clk
0:01:57.5]} 24. Qd3 {[%clk 0:00:17.1]} 24... Nf6 {[%clk 0:01:37]} 25. f3 {[%clk
0:00:16.9]} 25... Bb4 {[%clk 0:01:20.5]} 26. Qb1 {[%clk 0:00:17.1]} 26... Ba3
{[%clk 0:01:09]} 27. Kf2 {[%clk 0:00:18]} 27... Qb6 {[%clk 0:01:09.4]} 28. Rd2
{[%clk 0:00:18.6]} 28... Qc6 {[%clk 0:01:04]} 29. g4 {[%clk 0:00:19.6]} 29...
Bb4 {[%clk 0:01:01.2]} 30. Rd1 {[%clk 0:00:19.3]} 30... Ba3 {[%clk 0:00:48.1]}
31. gxf5 {[%clk 0:00:20]} 31... exf5 {[%clk 0:00:45.4]} 32. Qxf5 {[%clk
0:00:20.5]} 32... Rf8 {[%clk 0:00:46.9]} 33. Qd3 {[%clk 0:00:16.9]} 33... Bd6
{[%clk 0:00:29.8]} 34. Rg1 {[%clk 0:00:16.8]} 34... Qd7 {[%clk 0:00:29.1]} 35.
Be5 {[%clk 0:00:14.1]} 35... Ne4+ {[%clk 0:00:20.9]} 36. Ke1 {[%clk 0:00:13.1]}
36... Bb4+ {[%clk 0:00:15]} 37. Kd1 {[%clk 0:00:13.7]} 37... Nf2+ {[%clk
0:00:16]} 38. Kc2 {[%clk 0:00:14.6]} 38... Nxd3 {[%clk 0:00:17.3]} 39. Rxg7+
{[%clk 0:00:15.2]} 39... Qxg7 {[%clk 0:00:18.5]} 40. Bxg7 {[%clk 0:00:17.1]}
40... Kxg7 {[%clk 0:00:20.3]} 41. Kxd3 {[%clk 0:00:18.9]} 41... Rxf3 {[%clk
0:00:21.8]} 42. Nf4 {[%clk 0:00:20.4]} 42... Rg3 {[%clk 0:00:21.2]} 43. Nh5+
{[%clk 0:00:20]} 43... Kg6 {[%clk 0:00:21.7]} 44. Nxg3 {[%clk 0:00:21.9]} 44...
Bd6 {[%clk 0:00:22.9]} 45. Ne2 {[%clk 0:00:20.7]} 45... Kg5 {[%clk 0:00:24.5]}
46. Nc3 {[%clk 0:00:21.2]} 46... Kh4 {[%clk 0:00:25.1]} 47. Nxd5 {[%clk
0:00:22.5]} 47... Kxh3 {[%clk 0:00:26.9]} 48. e4 {[%clk 0:00:24]} 48... Kg2
{[%clk 0:00:26]} 49. e5 {[%clk 0:00:25.1]} 49... Bf8 {[%clk 0:00:27.2]} 50. Nf6
{[%clk 0:00:25.4]} 50... h6 {[%clk 0:00:27.7]} 51. d5 {[%clk 0:00:26.6]} 51...
Be7 {[%clk 0:00:29.2]} 52. d6 {[%clk 0:00:27.2]} 52... Bd8 {[%clk 0:00:30.6]}
53. Ke4 {[%clk 0:00:27.1]} 53... Kg3 {[%clk 0:00:30.2]} 54. Kf5 {[%clk 0:00:28]}
54... Kf3 {[%clk 0:00:29.2]} 55. e6 {[%clk 0:00:29]} 1-0

[Event "*** Titled Tuesday Blitz"]
[Site "Chess.com"]
[Date "2018.06.05"]
[Round "1"]
[White "Vusatiuk_Vladimir"]
[Black "cassoulet"]
[Result "1/2-1/2"]
[WhiteElo "2178"]
[BlackElo "2472"]
[TimeControl "180+2"]
[EndTime "13:09:29 PDT"]
[Termination "Game drawn by repetition"]

1. e4 {[%clk 0:02:59.5]} 1... c5 {[%clk 0:02:59.9]} 2. Nc3 {[%clk 0:02:58.2]}
2... Nc6 {[%clk 0:03:01.3]} 3. f4 {[%clk 0:02:59.3]} 3... g6 {[%clk 0:03:02.8]}
4. Nf3 {[%clk 0:03:00.8]} 4... Bg7 {[%clk 0:03:04.4]} 5. Bb5 {[%clk 0:03:02.4]}
5... d6 {[%clk 0:03:04.3]} 6. Bxc6+ {[%clk 0:03:02.8]} 6... bxc6 {[%clk
0:03:06.2]} 7. d3 {[%clk 0:03:04.4]} 7... Nf6 {[%clk 0:03:05.3]} 8. O-O {[%clk
0:03:04.9]} 8... O-O {[%clk 0:03:06.7]} 9. Qe1 {[%clk 0:03:05.3]} 9... Rb8
{[%clk 0:03:07.1]} 10. Qh4 {[%clk 0:03:03.8]} 10... e6 {[%clk 0:03:04.2]} 11. e5
{[%clk 0:02:55.5]} 11... Nd5 {[%clk 0:03:01.9]} 12. Qxd8 {[%clk 0:02:54.7]}
12... Rxd8 {[%clk 0:03:03.8]} 13. Ne4 {[%clk 0:02:51.6]} 13... dxe5 {[%clk
0:03:01.8]} 14. fxe5 {[%clk 0:02:52.2]} 14... Nb4 {[%clk 0:02:57.4]} 15. Rf2
{[%clk 0:02:31.8]} 15... c4 {[%clk 0:02:54]} 16. a3 {[%clk 0:02:23.7]} 16... Nd5
{[%clk 0:02:43.1]} 17. dxc4 {[%clk 0:02:22.5]} 17... Ne7 {[%clk 0:02:44.1]} 18.
Bg5 {[%clk 0:02:18.4]} 18... Rd7 {[%clk 0:02:38.6]} 19. Nc5 {[%clk 0:02:12.1]}
19... Rc7 {[%clk 0:02:36.3]} 20. b4 {[%clk 0:02:06]} 20... h6 {[%clk 0:02:33.1]}
21. Bxe7 {[%clk 0:02:03.6]} 21... Rxe7 {[%clk 0:02:35]} 22. Rd1 {[%clk
0:02:05.2]} 22... Re8 {[%clk 0:02:34.6]} 23. Ne4 {[%clk 0:01:57.5]} 23... Ba6
{[%clk 0:02:31.6]} 24. Nd6 {[%clk 0:01:57.9]} 24... Re7 {[%clk 0:02:28.9]} 25.
c3 {[%clk 0:01:39.8]} 25... Rd7 {[%clk 0:02:20.6]} 26. Rfd2 {[%clk 0:01:33.8]}
26... Rbd8 {[%clk 0:02:21.1]} 27. b5 {[%clk 0:01:24.3]} 27... cxb5 {[%clk
0:02:18.8]} 28. cxb5 {[%clk 0:01:24.8]} 28... Bc8 {[%clk 0:02:13.5]} 29. c4
{[%clk 0:01:23.1]} 29... Rc7 {[%clk 0:02:12]} 30. a4 {[%clk 0:00:40.3]} 30...
Bf8 {[%clk 0:02:12]} 31. Rd4 {[%clk 0:00:29.2]} 31... Rc5 {[%clk 0:02:07.6]} 32.
Ne4 {[%clk 0:00:26.5]} 32... Rxd4 {[%clk 0:02:04.3]} 33. Rxd4 {[%clk 0:00:28.4]}
33... Rc7 {[%clk 0:02:02.6]} 34. Kf1 {[%clk 0:00:22.4]} 34... Bb7 {[%clk
0:01:58]} 35. Nfd2 {[%clk 0:00:23.1]} 35... Bg7 {[%clk 0:01:54.8]} 36. Rd8+
{[%clk 0:00:21.9]} 36... Kh7 {[%clk 0:01:55.1]} 37. c5 {[%clk 0:00:19.4]} 37...
Bd5 {[%clk 0:01:41.7]} 38. c6 {[%clk 0:00:20.5]} 38... Bxe5 {[%clk 0:01:42.3]}
39. Nd6 {[%clk 0:00:18.8]} 39... Bxh2 {[%clk 0:01:32.8]} 40. Ne8 {[%clk
0:00:19.1]} 40... Re7 {[%clk 0:01:31.2]} 41. Nf6+ {[%clk 0:00:20.2]} 41... Kg7
{[%clk 0:01:32.7]} 42. Nxd5 {[%clk 0:00:21.5]} 42... exd5 {[%clk 0:01:34.4]} 43.
Rxd5 {[%clk 0:00:22.9]} 43... Bg3 {[%clk 0:01:32.5]} 44. Nf3 {[%clk 0:00:24]}
44... g5 {[%clk 0:01:32.3]} 45. Rd7 {[%clk 0:00:22.5]} 45... Re4 {[%clk
0:01:22.7]} 46. c7 {[%clk 0:00:18.8]} 46... Rc4 {[%clk 0:01:20.3]} 47. a5 {[%clk
0:00:18.9]} 47... Bxc7 {[%clk 0:01:19.5]} 48. b6 {[%clk 0:00:13.3]} 48... axb6
{[%clk 0:01:21.4]} 49. a6 {[%clk 0:00:14.7]} 49... Bg3 {[%clk 0:01:20.2]} 50. a7
{[%clk 0:00:14.9]} 50... Ra4 {[%clk 0:01:21.2]} 51. Nd4 {[%clk 0:00:15.4]} 51...
Be5 {[%clk 0:01:14.8]} 52. Nc6 {[%clk 0:00:14.9]} 52... Bg3 {[%clk 0:01:12.3]}
53. Rd8 {[%clk 0:00:14.5]} 53... Re4 {[%clk 0:01:10.7]} 54. Rd1 {[%clk 0:00:13]}
54... Ra4 {[%clk 0:01:07.6]} 55. Rd8 {[%clk 0:00:14]} 55... Re4 {[%clk
0:01:06.6]} 56. Rd1 {[%clk 0:00:13.3]} 56... Ra4 {[%clk 0:01:07]} 57. Rd8 {[%clk
0:00:11.3]} 57... Re4 {[%clk 0:01:06.6]} 58. Rd1 {[%clk 0:00:11.9]} 58... Ra4
{[%clk 0:01:06.4]} 59. Rd8 {[%clk 0:00:09.1]} 59... Re4 {[%clk 0:01:06.4]} 60.
Rd1 {[%clk 0:00:09.8]} 60... Ra4 {[%clk 0:01:06.2]} 1/2-1/2